bitfinex/quotes_ETHUSD_20260131
["timestamp","ask_amount","ask_price","bid_price","bid_amount"]
[1769883854378,0.1024,2395.7,2394.2,1.92016613]
[1769883854810,5.69012789,2396.0,2394.4,0.01662096]
[1769883854811,2.55987826,2396.0,2394.4,0.01662096]
[1769883854980,4.17258412,2396.6,2394.9,13.15222629]
[1769883855180,1.25948693,2396.7,2395.4,13.13560533]
[1769883855181,0.21634248,2396.7,2395.4,13.13560533]
[1769883855383,1.04273022,2397.6,2395.9,0.01662096]
[1769883855584,0.21615605,2397.3,2396.0,0.01662096]
[1769883855820,1.04268715,2397.7,2396.1,0.875]
[1769883856094,5.04523912,2398.0,2396.4,0.01662096]
[1769883856095,0.875,2398.0,2396.4,0.01662096]
[1769883856306,1.04257892,2397.9,2396.6,1.04314445]
[1769883856506,1.91755967,2398.0,2396.6,1.05976541]
[1769883856702,1.91755967,2398.0,2396.7,0.52489642]
[1769883856922,1.91755967,2398.0,2396.5,1.04315752]
[1769883857281,4.16892816,2398.7,2396.5,1.04315752]
[1769883857282,0.29973966,2399.4,2398.5,1.95933744]
[1769883857578,0.29973966,2399.4,2397.2,7.73197783]
[1769883857579,4.16789153,2399.3,2397.7,0.875]
[1769883857781,13.7006792,2399.2,2397.3,0.77319778]
[1769883858008,13.7006792,2399.2,2396.4,4.18937288]
[1769883858009,13.61490016,2398.8,2396.5,1.04315752]
[1769883858305,13.61490016,2398.8,2396.3,17.32497821]
[1769883858306,0.01662096,2398.0,2396.3,0.875]
[1769883858509,0.01662096,2397.4,2395.7,1.04350419]
[1769883858714,0.01662096,2397.8,2396.3,1.04326259]
[1769883858891,0.01662096,2397.7,2396.4,0.875]
[1769883859092,0.01662096,2397.7,2396.3,1.91826259]
[1769883859279,0.01662096,2397.5,2396.4,0.60913628]
[1769883859486,0.01662096,2397.8,2396.4,0.60913628]
[1769883859809,0.01662096,2397.8,2395.3,13.13560533]
[1769883859810,0.01662096,2397.2,2395.3,13.13560533]
[1769883860036,0.01662096,2397.0,2396.3,1.0432598]
[1769883860313,0.01662096,2397.6,2396.3,1.0432598]
[1769883860509,0.01662096,2397.6,2396.2,4.17310019]
[1769883860510,0.01662096,2397.6,2396.2,0.875]
[1769883860712,1.05908061,2398.2,2396.3,13.64041535]
[1769883860883,0.01662096,2397.6,2396.3,0.50481002]
[1769883861090,0.01662096,2397.5,2396.3,0.50481002]
[1769883862192,0.01662096,2397.6,2396.3,0.50481002]
[1769883862393,0.01662096,2398.1,2396.4,14.17883684]
[1769883862605,0.01662096,2397.7,2396.5,1.88565729]
[1769883862797,0.01662096,2397.7,2396.4,1.04323151]
[1769883863002,0.01662096,2398.1,2396.4,1.04323151]
[1769883863003,0.01662096,2398.2,2396.4,1.04323151]
[1769883863207,0.01662096,2397.9,2396.4,1.04323151]
[1769883863514,0.01662096,2397.7,2396.4,1.04323151]
[1769883863712,0.001,2397.5,2396.5,1.88565729]
[1769883864093,0.001,2397.5,2396.4,1.04323151]
[1769883864094,0.01762096,2397.5,2396.4,1.04323151]
[1769883864610,0.01662096,2397.4,2395.8,13.13560533]
[1769883864811,0.01662096,2397.3,2396.3,1.04326391]
[1769883865111,0.01662096,2397.3,2396.1,4.17343973]
[1769883865284,0.01662096,2397.0,2395.9,0.875]
[1769883865484,0.01662096,2397.1,2396.3,1.04326905]
[1769883865699,0.01662096,2397.3,2396.3,1.04326905]
[1769883866083,0.01662096,2397.3,2396.1,4.173425]
[1769883866084,0.01662096,2397.3,2396.2,1.04329451]
[1769883866303,0.01662096,2397.0,2396.1,1.04334655]
[1769883866484,0.01662096,2396.9,2396.1,1.04335375]
[1769883866692,0.01662096,2396.9,2395.3,1.04371059]
[1769883866693,1.0596619,2396.9,2395.3,1.04371059]
[1769883866897,4.17155894,2397.2,2395.4,1.41793159]
[1769883867113,1.05954782,2397.1,2395.4,1.41793159]
[1769883867413,1.0603841,2397.5,2395.6,13.13560533]
[1769883867615,1.0603841,2397.5,2395.7,1.31522263]
[1769883867616,0.01662096,2397.0,2395.7,1.31522263]
[1769883867795,0.01662096,2397.0,2395.4,0.875]
[1769883867796,0.01662096,2396.8,2395.4,0.875]
[1769883868112,0.01662096,2396.9,2395.4,14.01060533]
[1769883868312,0.35259126,2397.7,2395.4,14.01060533]
[1769883868514,0.01662096,2397.0,2395.4,14.01060533]
[1769883868731,0.01662096,2396.9,2395.5,1.04362346]
[1769883868887,0.01662096,2396.9,2395.6,1.92287226]
[1769883869326,0.01662096,2396.7,2395.6,1.92287226]
[1769883869491,0.01662096,2396.8,2395.5,1.04362346]
[1769883870316,0.01662096,2396.6,2395.5,1.04362346]
[1769883870518,0.01662096,2396.5,2395.4,1.91865549]
[1769883870818,0.01662096,2396.5,2394.4,1.04409265]
[1769883870819,1.06002663,2396.0,2394.4,1.04409265]
[1769883871137,1.06002663,2396.0,2394.5,0.60955043]
[1769883871138,0.01662096,2395.8,2394.5,0.60955043]
[1769883871595,1.06002663,2396.0,2394.5,0.60955043]
[1769883872498,1.06002663,2396.0,2394.4,1.04409989]
[1769883872499,0.01662096,2395.7,2394.4,1.04409989]
[1769883872813,0.01662096,2395.7,2394.3,1.04412696]
[1769883872814,0.01662096,2395.5,2394.3,1.04412696]
[1769883873010,1.06020085,2395.6,2394.3,1.04412696]
[1769883873215,0.01662096,2395.5,2394.3,1.04412696]
[1769883873423,0.01662096,2394.9,2394.1,1.04422798]
[1769883873596,0.01662096,2395.3,2394.1,1.04422798]
[1769883873811,0.01662096,2395.3,2394.2,1.04418687]
[1769883874149,0.01662096,2395.2,2393.6,4.17771881]
[1769883874348,0.01662096,2395.4,2394.3,1.04413455]
[1769883874551,0.01662096,2395.4,2394.2,1.04418415]
[1769883874552,0.01662096,2395.2,2394.2,1.04418415]
[1769883874843,1.06041762,2395.2,2393.8,1.0443646]
[1769883875061,0.01662096,2395.1,2393.7,1.46215394]
[1769883875267,0.01662096,2395.0,2393.8,0.56397869]
[1769883875415,0.01662096,2395.0,2393.7,1.04438206]
[1769883875740,0.01662096,2395.0,2394.4,0.0011]
[1769883875913,0.01174192,2395.1,2394.1,0.0011]
[1769883876111,1.04379666,2395.2,2394.1,0.0011]
[1769883876312,0.5385023,2395.1,2394.1,0.0011]
[1769883876513,0.01662096,2396.8,2394.8,13.13560533]
[1769883876751,1.07623713,2397.0,2395.0,14.17944666]
[1769883876953,0.03324192,2397.0,2395.1,0.01662096]
[1769883877126,4.18801608,2397.3,2395.1,0.01662096]
[1769883877127,0.001,2397.5,2396.2,13.93178278]
[1769883877329,0.03324192,2397.4,2396.3,14.80678278]
[1769883877644,0.03324192,2397.4,2395.9,0.11902096]
[1769883877645,0.03324192,2397.4,2396.4,1.48234037]
[1769883877846,0.01662096,2397.3,2395.9,0.875]
[1769883878148,0.01662096,2397.1,2395.4,0.875]
[1769883878729,0.01662096,2396.6,2395.2,1.04375417]
[1769883878914,0.01662096,2396.6,2395.2,1.91875417]
[1769883879242,0.01662096,2396.3,2395.1,1.043778]
[1769883879646,0.03324192,2396.2,2395.1,1.043778]
[1769883880443,0.01662096,2396.8,2395.1,14.95893982]
[1769883880625,0.01662096,2396.8,2395.1,14.97556078]
[1769883880829,0.01662096,2396.9,2395.3,1.04371059]
[1769883881033,0.001,2397.5,2395.8,13.91516182]
[1769883881220,0.01662096,2397.4,2395.9,0.875]
[1769883881432,0.001,2397.5,2395.9,14.79016182]
[1769883881652,1.04376607,2397.5,2396.0,1.47901618]
[1769883881844,0.001,2397.5,2396.0,1.47901618]
[1769883882932,0.001,2397.5,2396.1,13.73130774]
[1769883883138,0.001,2397.5,2396.2,12.68794561]
[1769883883831,0.001,2397.5,2396.3,0.875]
[1769883884041,0.001,2397.5,2396.1,1.04336213]
[1769883884242,0.01762096,2397.5,2396.1,1.91836213]
[1769883884443,0.01762096,2397.5,2394.6,12.68794561]
[1769883884444,0.01662096,2396.7,2394.6,12.68794561]
[1769883884766,0.01662096,2397.2,2395.4,4.17460515]
[1769883884964,0.1024,2397.3,2395.5,0.875]
[1769883885154,0.01662096,2397.1,2395.6,1.77375508]
[1769883885354,0.01662096,2396.9,2395.6,1.77375508]
[1769883885555,0.01662096,2397.0,2395.5,0.875]
[1769883885959,0.01662096,2397.1,2395.5,0.875]
[1769883886266,0.01662096,2396.0,2394.7,1.26879456]
[1769883886464,0.1024,2396.5,2394.4,13.57956657]
[1769883886636,0.01662096,2396.3,2395.2,1.0437324]
[1769883886836,0.01662096,2396.4,2395.2,1.0437324]
[1769883887036,1.04327504,2396.3,2395.2,1.56560755]
[1769883887243,1.04327504,2396.3,2395.8,0.0011]
[1769883887462,1.05988069,2396.4,2395.8,0.0011]
[1769883887862,1.16214456,2396.7,2395.8,0.0011]
[1769883888057,0.01662096,2396.5,2395.8,0.0011]
[1769883888240,0.01662096,2396.4,2395.8,0.0011]
[1769883888740,0.01662096,2396.4,2395.5,0.0011]
[1769883888960,0.01662096,2396.1,2394.5,1.0440593]
[1769883889163,0.54326654,2396.1,2394.5,1.0440593]
[1769883889366,0.01662096,2395.9,2394.5,1.0440593]
[1769883889569,0.01662096,2395.6,2394.4,1.91910201]
[1769883889866,0.01662096,2395.7,2394.4,1.04410201]
[1769883890453,0.01662096,2395.6,2394.4,1.04410201]
[1769883890978,0.01662096,2394.8,2394.1,0.0011]
[1769883891277,0.01662096,2395.1,2394.1,0.0011]
[1769883891940,0.01662096,2394.7,2394.1,0.0011]
[1769883892165,0.01662096,2394.8,2394.1,0.0011]
[1769883892371,0.01662096,2394.9,2394.1,0.0011]
[1769883892684,0.01662096,2394.9,2393.6,1.0444213]
[1769883892847,0.01662096,2394.7,2393.7,1.04440376]
[1769883893048,0.01662096,2395.0,2393.7,1.04440823]
[1769883893049,1.06048306,2395.0,2393.7,1.04440823]
[1769883893485,0.01662096,2394.9,2393.7,1.04440823]
[1769883893779,0.54351689,2394.9,2393.7,1.04440823]
[1769883894075,0.01662096,2394.9,2393.7,1.04440823]
[1769883894564,0.01662096,2394.9,2393.6,1.56668339]
[1769883894765,0.01662096,2394.7,2393.5,1.04446957]
[1769883894953,0.01662096,2394.7,2393.6,1.04444057]
[1769883895569,0.01662096,2394.7,2393.2,0.0011]
[1769883895570,1.0440157,2394.6,2393.2,0.0011]
[1769883895770,1.04391277,2394.9,2393.2,0.0011]
[1769883895942,1.04378393,2395.2,2393.2,12.68904561]
[1769883896283,0.01662096,2395.1,2393.3,1.27056666]
[1769883896448,0.01662096,2395.0,2393.3,12.68794561]
[1769883896642,1.04378393,2395.2,2393.4,0.875]
[1769883897354,0.01662096,2395.1,2393.4,0.875]
[1769883897560,1.04384133,2395.0,2393.5,1.0444955]
[1769883897764,1.04384133,2395.0,2393.6,0.60974775]
[1769883898573,1.06044446,2395.1,2393.6,0.60974775]
[1769883899276,0.01662096,2395.0,2393.6,0.60974775]
[1769883899777,0.01662096,2395.0,2393.7,1.04440823]
[1769883899778,1.04388492,2394.9,2393.7,1.04440823]
[1769883899953,0.001,2394.8,2393.8,0.58317889]
[1769883900585,0.001,2394.8,2393.8,13.2711245]
[1769883900877,0.01662096,2396.0,2394.2,12.68794561]
[1769883901079,0.01662096,2396.6,2394.2,12.68794561]
[1769883901080,1.04295529,2397.1,2395.2,12.70456657]
[1769883901387,0.001,2397.2,2395.6,12.68794561]
[1769883901567,0.001,2397.2,2396.0,12.70456657]
[1769883901768,0.001,2397.2,2396.1,1.04336213]
[1769883901957,0.01662096,2397.0,2395.8,1.04347014]
[1769883902147,0.01662096,2397.0,2395.5,1.04359606]
[1769883902148,0.01662096,2396.8,2395.5,1.04359606]
[1769883902369,0.01662096,2396.6,2395.6,1.04355239]
[1769883902549,0.11902096,2397.3,2396.0,1.04340113]
[1769883902745,0.11902096,2397.3,2396.0,1.04339986]
[1769883902977,0.001,2397.2,2396.0,1.56510212]
[1769883903174,0.001,2397.2,2396.0,1.56509713]
[1769883903470,0.01762096,2397.2,2396.0,1.04339487]
[1769883903675,0.001,2397.2,2395.5,13.73156907]
[1769883904451,1.04389551,2397.2,2395.5,13.73156907]
[1769883905002,14.22827467,2397.2,2395.5,1.04362346]
[1769883905281,14.22827467,2397.2,2395.4,4.17459319]
[1769883905282,13.52034946,2397.0,2395.1,4.17503243]
[1769883905469,13.52034946,2397.0,2395.3,1.04368502]
[1769883905675,1.83997044,2397.1,2394.8,1.04392614]
[1769883905676,13.52034946,2396.6,2394.8,1.04392614]
[1769883905849,0.875,2396.6,2394.8,1.04392614]
[1769883906051,0.875,2396.6,2394.9,0.52196402]
[1769883906663,4.4055265,2397.0,2394.9,0.52196402]
[1769883906664,2.88292307,2397.1,2395.1,12.68794561]
[1769883906865,1.04293954,2397.1,2395.1,12.68794561]
[1769883907449,0.001,2397.2,2395.5,12.71935043]
[1769883907654,0.001,2397.2,2395.7,1.04353633]
[1769883907871,0.01662096,2397.1,2395.7,1.04353633]
[1769883908070,0.001,2397.2,2395.8,13.2411186]
[1769883908751,0.001,2397.5,2396.2,12.73597139]
[1769883908980,0.001,2397.5,2396.3,0.875]
[1769883909157,0.001,2397.5,2396.5,0.01662096]
[1769883909352,0.001,2397.5,2396.4,12.73597139]
[1769883909579,0.01662096,2398.5,2396.6,0.01662096]
[1769883909786,4.18563425,2398.7,2396.8,12.71935043]
[1769883910379,0.01662096,2398.6,2396.8,12.71935043]
[1769883911071,0.01662096,2398.4,2396.8,12.71935043]
[1769883911381,0.01662096,2398.4,2396.7,1.04310093]
[1769883911382,0.01662096,2398.0,2396.7,1.04310093]
[1769883911896,0.001,2397.0,2396.6,4.17240372]
[1769883912194,0.01662096,2398.0,2396.6,1.04314445]
[1769883912369,0.01662096,2398.2,2396.7,0.65786222]
[1769883912569,0.01662096,2398.2,2396.6,1.04314445]
[1769883912766,0.01662096,2397.9,2396.6,1.04314445]
[1769883913197,0.01662096,2398.2,2396.6,1.04314445]
[1769883913373,0.875,2398.3,2396.6,1.04314445]
[1769883914619,1.0422599,2398.7,2396.6,12.73597139]
[1769883914771,1.0586923,2399.1,2397.2,12.73597139]
[1769883914970,1.05868568,2399.1,2397.3,13.59435043]
[1769883915297,1.05868568,2399.1,2397.3,13.61097139]
[1769883915694,1.04206472,2399.1,2397.4,12.71935043]
[1769883915898,0.52267548,2399.0,2397.5,1.36109714]
[1769883916600,1.04214431,2398.9,2397.6,1.04270937]
[1769883917201,1.56479128,2399.0,2397.6,13.7620598]
[1769883917511,0.40213966,2399.4,2397.6,13.77868076]
[1769883917512,0.29973966,2399.4,2397.6,13.77868076]
[1769883917683,0.875,2399.9,2397.6,13.77868076]
[1769883917684,0.875,2399.9,2398.1,12.71935043]
[1769883917884,0.875,2399.9,2398.2,0.874]
[1769883918187,0.11902096,2399.8,2398.2,0.874]
[1769883918386,0.11902096,2399.8,2397.6,1.04270937]
[1769883918387,0.01662096,2399.2,2397.6,1.04270937]
[1769883918592,0.01662096,2398.9,2397.6,1.04270937]
[1769883918790,0.01662096,2398.9,2397.5,1.91672597]
[1769883918791,1.05880872,2398.8,2397.5,1.91672597]
[1769883918992,1.05880872,2398.8,2396.7,5.86322634]
[1769883918993,0.01662096,2398.5,2397.4,1.0427924]
[1769883919200,0.01662096,2398.3,2396.4,12.71935043]
[1769883919375,0.01662096,2398.9,2397.5,1.04273289]
[1769883919575,0.01662096,2398.9,2397.6,0.52137728]
[1769883919808,0.1024,2399.4,2397.6,13.24072771]
[1769883919996,1.0418665,2399.6,2397.6,13.24072771]
[1769883920177,0.78495136,2399.6,2397.7,14.16597955]
[1769883920377,0.78495136,2399.6,2397.7,14.14935859]
[1769883920584,0.80157232,2399.6,2397.7,14.14935859]
[1769883920818,0.80157232,2399.6,2397.8,1.0426224]
[1769883920819,1.0585481,2399.4,2397.8,1.0426224]
[1769883921412,1.04189243,2399.5,2397.8,1.0426224]
[1769883921600,1.04189243,2399.5,2397.9,0.66597411]
[1769883921907,0.21575022,2400.4,2398.2,12.71935043]
[1769883922203,0.21575022,2400.4,2399.2,12.73597139]
[1769883922378,0.01662096,2401.0,2399.2,12.71935043]
[1769883922583,0.01662096,2401.0,2399.3,1.27193504]
[1769883922801,1.05789714,2400.9,2399.4,1.04192714]
[1769883923005,4.18172571,2401.0,2399.4,1.04192714]
[1769883923006,0.01662096,2401.0,2399.4,1.04192714]
[1769883923297,0.01662096,2401.3,2399.5,1.52215708]
[1769883923610,0.01662096,2401.0,2399.5,0.64815708]
[1769883924122,1.04105938,2401.5,2399.5,13.36750751]
[1769883924281,0.1024,2401.4,2399.5,13.36750751]
[1769883924476,0.01662096,2401.2,2399.6,1.44260556]
[1769883924711,0.001,2400.8,2399.6,1.44260556]
[1769883924901,0.001,2400.8,2399.7,1.04179689]
[1769883925704,0.001,2400.8,2399.2,1.04199215]
[1769883925906,0.001,2400.8,2399.2,0.5210369]
[1769883926075,0.001,2400.8,2399.1,4.16812714]
[1769883926277,0.001,2400.8,2398.9,1.04210964]
[1769883926278,0.01662096,2400.3,2398.9,1.04210964]
[1769883926482,0.01662096,2400.0,2398.2,12.71935043]
[1769883926687,0.01662096,2400.1,2399.1,1.04205687]
[1769883926884,0.01662096,2400.1,2398.3,2.14593504]
[1769883926885,0.874,2400.3,2398.5,16.90513604]
[1769883927124,13.96474967,2400.7,2398.5,16.90513604]
[1769883927125,1.04139688,2400.7,2399.1,0.01662096]
[1769883927300,1.04234492,2400.8,2399.2,0.874]
[1769883927477,0.001,2400.8,2399.2,0.89062096]
[1769883927679,0.001,2400.8,2399.2,0.874]
[1769883927680,1.04233987,2400.8,2399.2,0.874]
[1769883927876,0.001,2400.8,2399.2,0.874]
[1769883928108,0.001,2400.8,2399.3,0.23337519]
[1769883928283,0.001,2400.8,2399.4,12.73597139]
[1769883928485,0.001,2400.8,2399.6,0.01662096]
[1769883928805,0.001,2400.8,2399.6,1.0418403]
[1769883928997,0.001,2400.8,2399.7,0.01662096]
[1769883929306,0.001,2400.8,2399.7,1.81280035]
[1769883929478,0.001,2400.8,2399.7,14.53215078]
[1769883929679,0.001,2400.8,2399.7,14.51552982]
[1769883929897,0.001,2400.8,2399.8,0.01662096]
[1769883930136,0.001,2400.8,2399.9,0.874]
[1769883930404,0.001,2400.8,2399.5,1.04184767]
[1769883930775,0.001,2400.8,2399.5,1.65019536]
[1769883931001,0.001,2400.8,2399.8,12.71935043]
[1769883931208,0.001,2400.8,2399.5,1.65019536]
[1769883931515,0.001,2400.8,2399.6,0.01662096]
[1769883931679,0.001,2400.8,2399.8,0.01662096]
[1769883931877,0.001,2400.8,2399.6,0.01662096]
[1769883932108,0.001,2400.8,2399.6,1.8587076]
[1769883932281,0.001,2400.8,2399.1,4.16820653]
[1769883932484,0.001,2400.8,2397.6,1.50666352]
[1769883932485,0.001,2400.8,2399.0,0.01662096]
[1769883932699,0.001,2400.8,2399.5,1.04188331]
[1769883932882,0.001,2400.8,2399.4,4.1675349]
[1769883933077,0.001,2400.8,2399.5,0.6100083]
[1769883933509,0.001,2400.8,2399.4,1.04192714]
[1769883933711,0.001,2400.8,2399.4,1.0585481]
[1769883934011,0.001,2400.8,2399.4,1.04192714]
[1769883934607,0.001,2400.8,2399.7,0.01662096]
[1769883934812,0.001,2400.8,2399.7,1.04179689]
[1769883934992,0.001,2400.8,2399.8,1.79449558]
[1769883935188,1.14344324,2401.5,2399.9,12.73597139]
[1769883935384,1.04104324,2401.5,2400.0,0.88962096]
[1769883935591,1.04099468,2401.6,2400.2,0.01662096]
[1769883935794,0.44612887,2401.5,2400.1,1.36255924]
[1769883936197,0.001,2400.8,2400.0,0.873]
[1769883936721,0.001,2400.8,2398.9,12.71935043]
[1769883936887,0.001,2400.8,2399.1,4.18477277]
[1769883937082,0.001,2400.8,2399.0,1.04210087]
[1769883937292,0.01662096,2400.5,2399.0,1.04210087]
[1769883937495,0.01662096,2400.5,2398.3,0.01662096]
[1769883937496,0.01662096,2400.3,2398.9,1.04213792]
[1769883937680,0.01662096,2400.3,2398.1,0.88962096]
[1769883937681,0.01662096,2400.2,2398.1,5.04288068]
[1769883937887,0.35259126,2400.2,2398.8,1.04218019]
[1769883938110,13.38257455,2400.5,2399.0,1.04210087]
[1769883938111,13.36595359,2400.5,2399.0,1.04210087]
[1769883938517,0.01662096,2400.3,2398.9,1.0421366]
[1769883938813,1.04157986,2400.2,2398.4,0.01662096]
[1769883939013,1.04157986,2400.2,2398.5,1.04231811]
[1769883939217,0.1024,2399.9,2398.4,1.04235209]
[1769883939510,1.04157986,2400.2,2398.4,1.04235209]
[1769883939713,0.11902096,2400.1,2398.4,1.04235209]
[1769883939887,0.01662096,2400.0,2398.4,1.04235209]
[1769883940087,0.01662096,2399.9,2398.4,1.04235209]
[1769883940317,0.01662096,2399.9,2397.1,13.83710778]
[1769883940318,13.71854485,2399.9,2397.1,13.83710778]
[1769883940493,0.11902096,2399.5,2397.9,1.04256014]
[1769883940813,0.11902096,2399.5,2397.4,4.18774115]
[1769883940814,0.1024,2399.5,2398.4,1.04235295]
[1769883941012,0.1024,2399.6,2397.9,1.04257892]
[1769883941212,1.04179689,2399.7,2397.9,1.04257892]
[1769883941386,3.45336111,2399.7,2398.0,0.52295972]
[1769883941588,3.46998207,2399.7,2398.0,0.52295972]
[1769883941792,1.04179689,2399.7,2398.0,0.52295972]
[1769883942025,0.1024,2399.5,2397.9,1.04257892]
[1769883942517,0.01662096,2399.6,2397.9,1.04257892]
[1769883942721,0.1024,2399.6,2397.9,1.05919988]
[1769883943019,0.01662096,2399.3,2397.6,1.04270937]
[1769883943329,0.01662096,2399.3,2397.7,0.52135469]
[1769883943689,13.56517144,2399.3,2397.2,2.67388909]
[1769883943895,0.01662096,2399.0,2397.4,1.04276785]
[1769883944110,0.01662096,2399.0,2397.5,1.04274618]
[1769883944797,0.11902096,2398.7,2397.1,1.04289458]
[1769883944996,1.04227466,2398.6,2397.1,0.52149211]
[1769883945198,0.11902096,2398.3,2396.7,1.04310093]
[1769883945809,0.01662096,2398.3,2396.7,1.04310093]
[1769883945998,0.1024,2398.5,2396.7,1.05972189]
[1769883946202,0.1024,2398.5,2396.8,13.25542487]
[1769883946519,0.1024,2398.5,2396.8,13.23880391]
[1769883946899,1.04236157,2398.4,2396.9,1.05963485]
[1769883947102,1.04236157,2398.4,2396.9,1.04301389]
[1769883947302,1.04236157,2398.4,2397.0,1.84538734]
[1769883947494,0.1024,2398.6,2397.0,1.84538734]
[1769883947692,1.0422312,2398.7,2397.3,0.01662096]
[1769883947894,14.43817144,2399.2,2397.5,0.01662096]
[1769883947895,1.91504196,2399.2,2397.5,0.01662096]
[1769883948120,1.04194142,2399.4,2397.9,0.01662096]
[1769883948321,1.05841785,2399.8,2397.8,0.01662096]
[1769883948494,4.16729815,2399.7,2397.9,0.89062096]
[1769883948694,0.1024,2399.5,2397.9,0.89062096]
[1769883948893,0.1024,2399.5,2397.9,0.874]
[1769883949298,1.04192714,2399.4,2398.0,1.04253544]
[1769883950020,4.27007592,2399.5,2398.0,1.04253544]
[1769883950021,1.04190973,2399.5,2398.0,1.04253544]
[1769883950323,1.04190973,2399.5,2398.1,0.60866772]
[1769883950621,1.04186729,2399.6,2398.1,0.60866772]
[1769883950999,0.1024,2399.5,2398.1,0.60866772]
[1769883951197,0.1024,2399.5,2398.0,1.04253544]
[1769883951198,0.11902096,2399.5,2398.0,1.04253544]
[1769883951730,1.04192714,2399.4,2398.0,1.04253544]
[1769883951947,0.01662096,2399.2,2397.2,12.71392314]
[1769883952231,0.11902096,2399.3,2397.9,1.04256599]
[1769883952424,0.11902096,2399.3,2397.3,5.06184724]
[1769883952425,0.01662096,2399.1,2397.7,1.04264825]
[1769883952602,0.01662096,2399.1,2397.8,1.04260356]
[1769883952922,0.01662096,2399.1,2397.3,0.874]
[1769883953121,0.01662096,2399.0,2397.4,1.35879231]
[1769883953326,0.01662096,2399.2,2397.9,1.04255162]
[1769883953525,0.01662096,2399.2,2397.8,1.04259323]
[1769883953900,1.05872183,2399.0,2397.4,2.40156926]
[1769883954105,0.01662096,2398.6,2397.4,1.04277695]
[1769883954727,0.01662096,2398.8,2397.4,1.04277695]
[1769883956224,0.01662096,2399.8,2397.5,13.58792314]
[1769883956225,4.168197,2399.2,2397.5,13.58792314]
[1769883956429,1.04196393,2399.4,2397.7,12.7305441]
[1769883956722,1.04191207,2399.5,2397.8,12.7305441]
[1769883956895,0.41842115,2399.4,2397.9,1.27471651]
[1769883957102,1.04191207,2399.5,2397.9,1.27471651]
[1769883957897,0.11902096,2399.4,2397.9,1.27471651]
[1769883958106,4.1673632,2399.6,2397.8,13.75654554]
[1769883958317,1.25843045,2399.7,2398.1,0.01662096]
[1769883958522,1.04182119,2399.7,2398.0,12.7305441]
[1769883958717,1.04182119,2399.7,2398.2,12.71392314]
[1769883959504,1.04182119,2399.7,2398.2,13.58792314]
[1769883959906,1.91576206,2399.8,2398.2,13.58792314]
[1769883960167,1.91576206,2399.8,2398.3,1.04240503]
[1769883960304,1.91576206,2399.8,2398.4,1.87999483]
[1769883960935,0.01662096,2399.7,2398.4,1.87999483]
[1769883961148,0.01662096,2399.7,2398.2,1.91642221]
[1769883961301,0.01662096,2399.3,2397.9,1.04364995]
[1769883961516,0.01662096,2399.1,2398.1,1.04248395]
[1769883961848,0.01662096,2399.6,2398.2,1.04243994]
[1769883963044,0.01662096,2399.6,2397.9,0.0011]
[1769883963045,0.01662096,2399.2,2397.9,0.0011]
[1769883963553,0.01662096,2398.9,2397.9,0.0011]
[1769883963717,0.01662096,2398.9,2397.6,0.0011]
[1769883963920,0.01662096,2398.9,2397.6,1.04377802]
[1769883964125,0.01662096,2398.9,2397.6,1.56526938]
[1769883964431,0.01662096,2398.9,2397.6,0.52259136]
[1769883964634,0.01662096,2398.9,2397.6,1.04380446]
[1769883964821,1.04218776,2398.8,2397.6,0.0011]
[1769883965831,0.11902096,2398.7,2397.6,0.0011]
[1769883966044,0.01662096,2398.5,2397.6,0.0011]
[1769883966673,0.01662096,2398.5,2396.9,1.04408121]
[1769883966674,13.56517144,2398.2,2396.9,1.04408121]
[1769883966960,1.04253544,2398.0,2396.9,0.0011]
[1769883967165,0.11902096,2397.9,2396.9,0.0011]
[1769883967370,0.01662096,2397.8,2396.9,0.0011]
[1769883967529,0.01662096,2397.5,2396.7,0.0011]
[1769883967736,0.25019126,2397.5,2396.7,0.0011]
[1769883968070,0.11902096,2397.2,2395.7,0.0011]
[1769883968226,0.01662096,2396.9,2395.7,0.0011]
[1769883968565,0.01662096,2396.8,2395.7,0.0011]
[1769883968925,1.04310093,2396.7,2395.7,0.0011]
[1769883969126,0.52321256,2396.6,2395.7,0.0011]
[1769883969640,1.04279636,2397.4,2395.7,0.0011]
[1769883969831,0.11902096,2397.3,2395.7,0.0011]
[1769883970061,1.04279636,2397.4,2395.7,0.0011]
[1769883970376,0.1024,2397.0,2395.7,0.0011]
[1769883970663,0.1024,2397.2,2395.7,0.0011]
[1769883971030,1.04292686,2397.1,2395.7,0.0011]
[1769883971631,1.05954782,2397.1,2395.7,0.0011]
[1769883971832,0.55164858,2397.0,2395.7,0.0011]
[1769883972270,0.01662096,2396.7,2395.7,0.0011]
[1769883972439,0.01662096,2396.6,2395.7,0.0011]
[1769883973275,1.04318798,2396.5,2395.7,0.0011]
[1769883974045,1.04318798,2396.5,2395.9,0.0011]
[1769883974243,0.52325609,2396.4,2395.9,0.0011]
[1769883975043,0.52325609,2396.4,2395.7,0.0011]
[1769883975332,1.04318798,2396.5,2395.7,0.0011]
[1769883975872,1.04318798,2396.5,2395.6,0.0011]
[1769883977467,4.17207963,2396.9,2395.6,0.0011]
[1769883977958,1.04301389,2396.9,2395.6,0.0011]
[1769883978458,1.57802419,2397.0,2395.6,0.0011]
[1769883978638,1.04299657,2397.0,2395.6,0.0011]
[1769883979666,4.17171926,2397.1,2395.6,0.0011]
[1769883980038,1.04290438,2397.2,2395.6,12.79407895]
[1769883980961,0.01662096,2396.8,2395.6,0.0011]
[1769883981161,0.01662096,2396.7,2395.6,0.0011]
[1769883981363,0.89062096,2396.6,2395.6,0.0011]
[1769883981563,0.01662096,2396.5,2395.6,0.0011]
[1769883981767,1.04320665,2396.5,2395.6,0.0011]
[1769883982269,1.65384896,2396.5,2395.6,0.0011]
[1769883982485,1.67046992,2396.5,2395.6,0.0011]
[1769883982638,0.1024,2396.4,2394.7,4.17689503]
[1769883982843,0.1024,2396.4,2394.7,0.0011]
[1769883982844,0.01662096,2395.7,2394.7,0.0011]
[1769883983143,0.01662096,2395.6,2394.7,0.0011]
[1769883983544,0.875,2395.7,2394.7,0.0011]
[1769883983736,1.04357989,2395.6,2394.7,0.0011]
[1769883983940,0.875,2395.7,2394.7,0.0011]
[1769883984359,1.91854518,2395.7,2394.7,0.0011]
[1769883984751,0.875,2395.7,2394.7,0.0011]
[1769883984952,1.91854107,2395.7,2394.7,0.0011]
[1769883985154,0.875,2395.7,2394.7,0.0011]
[1769883985653,1.91854794,2395.7,2394.7,0.0011]
[1769883986474,1.91854794,2395.7,2394.9,0.0011]
[1769883988658,0.875,2395.7,2394.9,0.0011]
[1769883989370,0.001,2396.1,2394.9,12.79407895]
[1769883989575,0.001,2396.1,2395.0,1.27940789]
[1769883990080,0.001,2396.1,2395.0,14.07238684]